[Event "89th GER-ch"]
[Site "Dresden"]
[Date "2018.08.04"]
[Round "2"]
[White "Colpe, Malte"]
[Black "Gaede, Derek"]
[Result "1/2-1/2"]
[ECO "C01"]
[WhiteElo "2384"]
[BlackElo "2298"]
[Annotator "NA"]
[PlyCount "84"]
[EventDate "2018.08.03"]
[EventType "swiss"]
[EventCountry "GER"]
[TimeControl "40/5400+30:1800+30"]

1. e4 e6 2. d4 d5 3. exd5 exd5 4. Nf3 Nf6 5. Bd3 Bd6 6. Qe2+ Qe7 7. Qxe7+ Bxe7 8. Bf4 c6 9. O-O O-O 10. Re1 Re8 11. Nbd2 Nbd7 12. Re2 Nf8 13. Rae1 Ne6 14. Be5 a5 15. c3 b6 16. Ng5 h6 17. Nxe6 Bxe6 18. f4 Bd7 19. h3 a4 20. g4 b5 21. Bf5 Bf8 22. Bd3 Nh7 23. f5 f6 24. Bg3 Ng5 25. Kg2 Rxe2+ 26. Rxe2 Re8 27. Rxe8 Bxe8 28. a3 Nf7 29. Nf3 Nd6 30. Kf2 Kf7 31. Ke3 Ke7 32. Bf4 Kd7 33. Ne1 Bf7 34. Nc2 Nc4+ 35. Bxc4 dxc4 36. Bb8 Bd5 37. Kf2 c5 38. Ba7 Be4 39. Ne3 cxd4 40. Bxd4 Bd6 41. Nf1 Bd3 42. Ng3 Bxg3+ {(=)} 1/2-1/2

[Event "89th GER-ch"]
[Site "Dresden"]
[Date "2018.08.04"]
[Round "2"]
[White "Langrock, Hannes"]
[Black "Plassmann, Dominik"]
[Result "1-0"]
[ECO "E00"]
[WhiteElo "2370"]
[BlackElo "2186"]
[Annotator "NA"]
[PlyCount "83"]
[EventDate "2018.08.03"]
[EventType "swiss"]
[EventCountry "GER"]
[SourceTitle "playchess.com"]
[Source "ChessBase"]
[SourceQuality "1"]
[TimeControl "40/5400+30:1800+30"]

1. d4 Nf6 2. c4 e6 3. g3 Bb4+ 4. Bd2 c5 5. Bxb4 cxb4 6. Bg2 O-O 7. e3 a5 8. Ne2 d6 9. O-O Na6 10. a3 Rb8 11. axb4 Nxb4 12. Na3 b6 13. Nc3 Qe7 14. e4 Ba6 15. Re1 Rfc8 16. b3 Nd7 17. Bh3 Rd8 18. f4 Qf6 19. Qd2 Qh6 20. Bg4 Nf6 21. Bf3 e5 22. Rad1 Nc6 23. Nab5 Bxb5 24. Nxb5 exf4 25. e5 dxe5 26. Bxc6 Ng4 27. Bd5 Ne3 28. dxe5 Nxd1 29. Rxd1 fxg3 30. Qxh6 gxh6 31. hxg3 Re8 32. Re1 Rbd8 33. Kf2 Kg7 34. Kf3 Kg6 35. Kf4 Re7 36. Nd6 Ra7 37. Nf5 h5 38. Rh1 f6 39. e6 a4 40. g4 h6 41. Rxh5 Rh8 42. e7 1-0

[Event "89th GER-ch"]
[Site "Dresden"]
[Date "2018.08.04"]
[Round "2"]
[White "Faerber, David"]
[Black "Brustkern, Juergen"]
[Result "1-0"]
[ECO "B67"]
[WhiteElo "2321"]
[BlackElo "2219"]
[Annotator "NA"]
[PlyCount "53"]
[EventDate "2018.08.03"]
[EventType "swiss"]
[EventCountry "GER"]
[SourceTitle "playchess.com"]
[Source "ChessBase"]
[SourceQuality "1"]
[TimeControl "40/5400+30:1800+30"]

1. e4 c5 2. Nf3 Nc6 3. d4 cxd4 4. Nxd4 Nf6 5. Nc3 d6 6. Bg5 e6 7. Qd2 a6 8. O-O-O Bd7 9. f4 b5 10. Bxf6 gxf6 11. Kb1 Qb6 12. Nxc6 Bxc6 13. f5 b4 14. Ne2 e5 15. Ng3 h5 16. h4 Qc5 17. Bd3 Bh6 18. Qe2 Be3 19. Nxh5 Ke7 20. g4 a5 21. g5 fxg5 22. hxg5 Rag8 23. Nf6 Bxg5 24. Nxg8+ Rxg8 25. Rhg1 a4 26. f6+ Kxf6 27. Qf3+ 1-0

[Event "89th GER-ch"]
[Site "Dresden"]
[Date "2018.08.04"]
[Round "2"]
[White "Syrov, Arkadi"]
[Black "Armbrust, Florian"]
[Result "1/2-1/2"]
[ECO "B01"]
[WhiteElo "2295"]
[BlackElo "2300"]
[Annotator "NA"]
[PlyCount "82"]
[EventDate "2018.08.03"]
[EventType "swiss"]
[EventCountry "GER"]
[TimeControl "40/5400+30:1800+30"]

1. e4 d5 2. exd5 Qxd5 3. Nc3 Qd6 4. d4 Nf6 5. Nf3 g6 6. Bc4 Bg7 7. O-O O-O 8. h3 a6 9. a4 Nbd7 10. Re1 b6 11. b3 Bb7 12. Ba3 c5 13. d5 Rfe8 14. Bb2 Rad8 15. Qd3 Qb8 16. Rad1 Qa8 17. Bc1 Nf8 18. Bf4 e6 19. d6 N8d7 20. Bh2 Nb8 21. Ng5 Nc6 22. Nxf7 Kxf7 23. Rxe6 Rxe6 24. Bxe6+ Kf8 25. d7 Bh6 26. Qd6+ Kg7 27. Nd5 Qb8 28. Nxf6 Kxf6 29. Bg4+ Qxd6 30. Bxd6 Bf8 31. Bc7 Be7 32. Bxd8 Nxd8 33. h4 h5 34. Be2 a5 35. Bc4 Be4 36. Rd2 Bf5 37. f3 Be6 38. Bb5 Ke5 39. g3 Kf6 40. Kf2 Nf7 41. Ke3 Bd8 {(=)} 1/2-1/2

[Event "89th GER-ch"]
[Site "Dresden"]
[Date "2018.08.04"]
[Round "2"]
[White "Svane, Frederik"]
[Black "Adiyaman, Rene"]
[Result "1/2-1/2"]
[ECO "C65"]
[WhiteElo "2292"]
[BlackElo "2097"]
[Annotator "NA"]
[PlyCount "124"]
[EventDate "2018.08.03"]
[EventType "swiss"]
[EventCountry "GER"]
[TimeControl "40/5400+30:1800+30"]

1. e4 e5 2. Nf3 Nc6 3. Bb5 Nf6 4. d3 Bc5 5. Bxc6 dxc6 6. O-O Qe7 7. Nbd2 Bg4 8. Nc4 Nd7 9. Ne3 Be6 10. b3 f6 11. Bb2 Nf8 12. Nh4 g6 13. Nf3 h5 14. Qe2 O-O-O 15. Rfd1 Bf7 16. c3 Ne6 17. Qf1 h4 18. d4 Bb6 19. d5 Nc5 20. dxc6 Nxe4 21. cxb7+ Kxb7 22. Qe2 Rxd1+ 23. Rxd1 Rd8 24. Rxd8 Qxd8 25. Nd1 Nc5 26. Nxh4 f5 27. Nf3 Nd3 28. Ne1 Nf4 29. Qc2 Bd5 30. Bc1 Be4 31. Qd2 Qg5 32. Ne3 Nh3+ 33. Kf1 f4 34. Nd1 Qh4 35. Qe2 Bc6 36. gxh3 Qxh3+ 37. Kg1 g5 38. Ne3 fxe3 39. Bxe3 Bxe3 40. Qxe3 Qg4+ {(=)} 41. Kf1 e4 42. c4 Qh5 43. Kg1 Qg4+ 44. Kf1 Qh5 45. a4 Qxh2 46. a5 Qf4 47. Qxf4 gxf4 48. Ng2 Ka6 49. b4 Ba4 50. Nxf4 Bb3 51. Ke1 Bxc4 52. Kd2 Kb5 53. Kc3 c5 54. bxc5 Kxc5 55. Nh5 Ba6 56. Ng3 Bb7 57. Kd2 Kb5 58. Ke3 Kxa5 59. Nxe4 Kb4 60. Kd4 a5 61. Nc5 a4 62. Nxa4 Kxa4 1/2-1/2

[Event "89th GER-ch"]
[Site "Dresden"]
[Date "2018.08.04"]
[Round "2"]
[White "Heimrath, Reiner"]
[Black "Zude, Arno"]
[Result "0-1"]
[ECO "A11"]
[WhiteElo "2200"]
[BlackElo "2373"]
[Annotator "NA"]
[PlyCount "84"]
[EventDate "2018.08.03"]
[EventType "swiss"]
[EventCountry "GER"]
[SourceTitle "playchess.com"]
[Source "ChessBase"]
[SourceQuality "1"]
[TimeControl "40/5400+30:1800+30"]

1. Nf3 d5 2. g3 c6 3. Bg2 Bg4 4. c4 e6 5. h3 Bh5 6. O-O Nd7 7. cxd5 cxd5 8. Nc3 Ne7 9. d3 Nc6 10. d4 Be7 11. a3 O-O 12. b4 Rc8 13. Na4 b5 14. g4 Bg6 15. Nc5 Nb6 16. Bf4 Nc4 17. Qb3 a5 18. Rad1 Re8 19. Bg3 h6 20. e3 Qb6 21. Ne1 Ra8 22. Ned3 Ra7 23. Qc3 Rea8 24. Nf4 axb4 25. axb4 Ra3 26. Qe1 Bc2 27. Ra1 Bh7 28. Rxa3 Rxa3 29. e4 dxe4 30. Bxe4 Bxe4 31. Qxe4 Nd2 32. Qg2 Nxd4 33. Kh1 N4f3 34. Nfd3 Qd8 35. Ne5 Qd5 36. Rd1 Bxc5 37. Nxf3 Nxf3 38. Rxd5 Ra1+ 39. Qf1 Rxf1+ 40. Kg2 exd5 41. bxc5 Rc1 42. Kxf3 Rxc5 0-1

[Event "89th GER-ch"]
[Site "Dresden"]
[Date "2018.08.04"]
[Round "2"]
[White "Heinert, Eugen"]
[Black "Fischer, Sebastian"]
[Result "1/2-1/2"]
[ECO "A87"]
[WhiteElo "2146"]
[BlackElo "2292"]
[Annotator "NA"]
[PlyCount "79"]
[EventDate "2018.08.03"]
[EventType "swiss"]
[EventCountry "GER"]
[SourceTitle "playchess.com"]
[Source "ChessBase"]
[SourceQuality "1"]
[TimeControl "40/5400+30:1800+30"]

1. d4 f5 2. Nf3 Nf6 3. g3 g6 4. Bg2 Bg7 5. O-O O-O 6. c4 d6 7. b3 e5 8. e3 e4 9. Nfd2 c5 10. Bb2 Nc6 11. Nc3 cxd4 12. exd4 d5 13. Ne2 g5 14. f4 h6 15. h3 Re8 16. a3 a5 17. c5 b6 18. Rc1 Be6 19. Nb1 Rb8 20. Qd2 Nd7 21. b4 axb4 22. axb4 bxc5 23. bxc5 Rb3 24. Qc2 Rb7 25. Bc3 Qa8 26. Nd2 Qa6 27. Rfe1 Qd3 28. Qa4 Rc8 29. Bf1 gxf4 30. gxf4 Bf6 31. Kh1 Nf8 32. Qc2 Qe3 33. Bg2 Rg7 34. Nb3 Rxg2 35. Kxg2 Qf3+ 36. Kh2 Qf2+ 37. Kh1 Qf3+ 38. Kh2 Qf2+ 39. Kh1 Qf3+ 40. Kh2 1/2-1/2

[Event "89th GER-ch"]
[Site "Dresden"]
[Date "2018.08.04"]
[Round "2"]
[White "Proschmann, Tino"]
[Black "Poetsch, Hagen"]
[Result "0-1"]
[ECO "B28"]
[WhiteElo "2092"]
[BlackElo "2513"]
[Annotator "ChessBase"]
[PlyCount "82"]
[EventDate "2018.08.03"]
[EventType "swiss"]
[EventCountry "GER"]
[SourceTitle "playchess.com"]
[Source "ChessBase"]
[SourceQuality "1"]
[TimeControl "40/5400+30:1800+30"]

1. e4 c5 2. Nf3 a6 3. c3 d5 4. exd5 Qxd5 5. d4 e6 6. Be3 Nd7 7. Be2 Ngf6 8. O-O Bd6 9. h3 O-O 10. a4 b6 11. c4 Qc6 12. Nc3 Bb7 13. d5 exd5 14. cxd5 Qc7 15. Bc4 Ne5 16. Nxe5 Bxe5 17. Qf3 Rad8 18. Rad1 Rd7 19. Bg5 h6 20. Bh4 Ne8 21. Bd3 Nd6 22. Rfe1 Re8 23. Bf5 Nxf5 24. Qxf5 g6 25. Qf3 f5 26. Bf6 Rf7 27. Rxe5 Rxe5 28. Bxe5 Qxe5 29. Qg3 Qxg3 30. fxg3 Kf8 31. Kf2 Ke8 32. Kf3 Kd7 33. h4 Kd6 34. Kf4 Bc8 35. Re1 Bd7 36. Re3 b5 37. axb5 axb5 38. Rd3 Re7 39. Rd1 b4 40. Nb1 Re4+ 41. Kf3 Bb5 0-1

[Event "89th GER-ch"]
[Site "Dresden"]
[Date "2018.08.04"]
[Round "2.2"]
[White "Miller, Eduard"]
[Black "Reuker, Jari"]
[Result "1-0"]
[ECO "C00"]
[WhiteElo "2309"]
[BlackElo "2404"]
[Annotator "NA"]
[PlyCount "125"]
[EventDate "2018.08.03"]
[EventType "swiss"]
[EventCountry "GER"]
[SourceTitle "playchess.com"]
[Source "ChessBase"]
[SourceQuality "1"]
[TimeControl "40/5400+30:1800+30"]

1. Nf3 {[%emt 1:30:26]} Nf6 {[%emt 1:30:12]} 2. g3 {[%emt 1:30:49]} d5 {[%emt 1:30:37]} 3. Bg2 {[%emt 1:31:13]} e6 {[%emt 1:30:58]} 4. O-O {[%emt 1:31:35]} Be7 {[%emt 1:31:21]} 5. d3 {[%emt 1:32:00]} O-O {[%emt 1:31:40]} 6. Nbd2 {[%emt 1:32:27]} c5 {[%emt 1:32:01]} 7. e4 {[%emt 1:32:52]} Nc6 {[%emt 1:32:25]} 8. Re1 {[%emt 1:33:17]} b5 {[%emt 1:32:41]} 9. e5 {[%emt 1:33:37]} Nd7 {[%emt 1:33:04]} 10. Nf1 {[%emt 1:34:00]} Bb7 {[%emt 1:33:15]} 11. h4 {[%emt 1:34:16]} Qc7 {[%emt 1:33:30]} 12. Bf4 {[%emt 1:34:40]} Rfc8 {[%emt 1:33:47]} 13. Ne3 {[%emt 1:34:44]} Qd8 {[%emt 1:34:06]} 14. c4 {[%emt 1:34:41]} bxc4 {[%emt 1:24:51]} 15. dxc4 {[%emt 1:29:34]} d4 {[%emt 1:00:29]} 16. Ng4 {[%emt 1:24:52]} h6 {[%emt 0:46:19]} 17. Nd2 {[%emt 1:07:23]} Bf8 {[%emt 0:40:58]} 18. Ne4 {[%emt 1:05:59]} Rcb8 {[%emt 0:32:31]} 19. Bxh6 {[%emt 0:50:49]} Ncxe5 {[%emt 0:30:47]} 20. Nxe5 {[%emt 0:50:12]} Nxe5 {[%emt 0:30:29]} 21. Bf4 {[%emt 0:46:43]} Nxc4 {[%emt 0:20:15]} 22. Bxb8 {[%emt 0:35:58]} Bxe4 {[%emt 0:18:39]} 23. Bxe4 {[%emt 0:32:53]} Rxb8 {[%emt 0:19:04]} 24. b3 {[%emt 0:27:33]} Nb6 {[%emt 0:15:20]} 25. Qh5 {[%emt 0:24:21]} f5 {[%emt 0:13:27]} 26. Bd3 {[%emt 0:24:46]} Qf6 {[%emt 0:13:14]} 27. Re2 {[%emt 0:23:33]} g6 {[%emt 0:12:31]} 28. Qg5 {[%emt 0:23:30]} Kf7 {[%emt 0:06:24]} 29. Rae1 {[%emt 0:23:15]} Re8 {[%emt 0:06:36]} 30. Bb5 {[%emt 0:17:00]} Re7 {[%emt 0:06:28]} 31. Re5 {[%emt 0:17:14]} Qxg5 {[%emt 0:02:21]} 32. hxg5 {[%emt 0:17:36]} Bg7 {[%emt 0:00:59]} 33. Rxc5 {[%emt 0:17:59]} e5 {[%emt 0:01:24]} 34. a4 {[%emt 0:15:15]} e4 {[%emt 0:00:38]} 35. a5 {[%emt 0:15:39]} Nd7 {[%emt 0:00:43]} 36. Bc4+ {[%emt 0:15:13]} Kf8 {[%emt 0:01:11]} 37. Rc8+ {[%emt 0:15:27]} Re8 {[%emt 0:01:41]} 38. Rxe8+ {[%emt 0:15:17]} Kxe8 {[%emt 0:02:10]} 39. Bb5 {[%emt 0:15:21]} Ke7 {[%emt 0:01:18]} 40. Bxd7 {[%emt 0:01:47]} Kxd7 {[%emt 0:01:47]} 41. f3 {[%emt 0:05:23]} d3 {[%emt 0:26:04]} 42. fxe4 {[%emt 0:33:34]} Bc3 {[%emt 0:25:04]} 43. Rc1 {[%emt 0:17:07]} fxe4 {[%emt 0:24:43]} 44. Kf1 {[%emt 0:17:22]} d2 {[%emt 0:08:43]} 45. Rb1 {[%emt 0:15:40]} Kd6 {[%emt 0:06:56]} 46. Ke2 {[%emt 0:15:43]} Kc5 {[%emt 0:02:34]} 47. Ke3 {[%emt 0:11:58]} Bxa5 {[%emt 0:02:19]} 48. Kxe4 {[%emt 0:11:44]} Bd8 {[%emt 0:02:40]} 49. Kd3 {[%emt 0:11:07]} Bxg5 {[%emt 0:03:04]} 50. Kc2 {[%emt 0:11:02]} Be3 {[%emt 0:01:45]} 51. Ra1 {[%emt 0:10:51]} Kb5 {[%emt 0:00:37]} 52. Ra4 {[%emt 0:10:23]} a5 {[%emt 0:00:08]} 53. Re4 {[%emt 0:10:31]} Bf2 {[%emt 0:00:03]} 54. Rg4 {[%emt 0:09:34]} Be3 {[%emt 0:00:22]} 55. Rxg6 {[%emt 0:09:38]} a4 {[%emt 0:00:33]} 56. bxa4+ {[%emt 0:10:04]} Kxa4 {[%emt 0:01:02]} 57. Re6 {[%emt 0:10:23]} Bg5 {[%emt 0:00:56]} 58. Re4+ {[%emt 0:10:45]} Ka3 {[%emt 0:01:25]} 59. Re5 {[%emt 0:11:08]} Bh6 {[%emt 0:01:47]} 60. g4 {[%emt 0:11:27]} Kb4 {[%emt 0:02:07]} 61. g5 {[%emt 0:11:42]} Bf8 {[%emt 0:01:54]} 62. Rf5 {[%emt 0:11:49]} Bg7 {[%emt 0:02:00]} 63. Rf7 {[%emt 0:12:15]} 1-0

[Event "89th GER-ch"]
[Site "Dresden"]
[Date "2018.08.04"]
[Round "2.3"]
[White "Rehberg, Raphael"]
[Black "Gschnitzer, Adrian"]
[Result "0-1"]
[ECO "B31"]
[WhiteElo "2234"]
[BlackElo "2333"]
[Annotator "NA"]
[PlyCount "86"]
[EventDate "2018.08.03"]
[EventType "swiss"]
[EventCountry "GER"]
[SourceTitle "playchess.com"]
[Source "ChessBase"]
[SourceQuality "1"]
[TimeControl "40/5400+30:1800+30"]

1. e4 {[%emt 1:30:28]} c5 {[%emt 1:30:23]} 2. Nf3 {[%emt 1:30:54]} Nc6 {[%emt 1:30:46]} 3. Bb5 {[%emt 1:31:18]} g6 {[%emt 1:31:08]} 4. Bxc6 {[%emt 1:31:44]} bxc6 {[%emt 1:31:31]} 5. O-O {[%emt 1:32:03]} Bg7 {[%emt 1:31:56]} 6. Re1 {[%emt 1:32:23]} Nh6 {[%emt 1:32:11]} 7. c3 {[%emt 1:32:39]} O-O {[%emt 1:32:30]} 8. d4 {[%emt 1:33:06]} cxd4 {[%emt 1:32:50]} 9. cxd4 {[%emt 1:33:32]} d5 {[%emt 1:33:10]} 10. Qc2 {[%emt 1:26:19]} dxe4 {[%emt 1:27:03]} 11. Qxe4 {[%emt 1:26:11]} Be6 {[%emt 1:21:11]} 12. Nc3 {[%emt 1:21:56]} Nf5 {[%emt 1:18:33]} 13. Qxc6 {[%emt 1:16:22]} Rc8 {[%emt 1:11:35]} 14. Qe4 {[%emt 0:58:49]} Nxd4 {[%emt 1:06:54]} 15. Nxd4 {[%emt 0:59:00]} Qxd4 {[%emt 1:06:50]} 16. Qxd4 {[%emt 0:55:15]} Bxd4 {[%emt 1:07:11]} 17. Be3 {[%emt 0:55:41]} Rfd8 {[%emt 0:56:46]} 18. Rad1 {[%emt 0:53:14]} Bxe3 {[%emt 0:54:51]} 19. fxe3 {[%emt 0:53:35]} Bc4 {[%emt 0:48:26]} 20. a3 {[%emt 0:36:02]} Bb3 {[%emt 0:44:22]} 21. Rd4 {[%emt 0:34:54]} a5 {[%emt 0:42:31]} 22. Kf2 {[%emt 0:31:04]} e5 {[%emt 0:40:13]} 23. Rxd8+ {[%emt 0:31:28]} Rxd8 {[%emt 0:40:37]} 24. e4 {[%emt 0:29:13]} f6 {[%emt 0:37:45]} 25. Ke3 {[%emt 0:28:27]} Kf7 {[%emt 0:36:20]} 26. Re2 {[%emt 0:25:41]} f5 {[%emt 0:25:13]} 27. g3 {[%emt 0:18:45]} Bc4 {[%emt 0:24:15]} 28. Rc2 {[%emt 0:18:57]} Rd3+ {[%emt 0:23:54]} 29. Kf2 {[%emt 0:19:23]} Bb3 {[%emt 0:22:35]} 30. Re2 {[%emt 0:19:43]} f4 {[%emt 0:21:28]} 31. gxf4 {[%emt 0:14:05]} exf4 {[%emt 0:21:35]} 32. e5 {[%emt 0:13:49]} g5 {[%emt 0:20:18]} 33. Ne4 {[%emt 0:08:33]} g4 {[%emt 0:19:21]} 34. Nf6 {[%emt 0:05:48]} g3+ {[%emt 0:05:52]} 35. hxg3 {[%emt 0:06:15]} fxg3+ {[%emt 0:06:16]} 36. Kg1 {[%emt 0:04:15]} Ba4 {[%emt 0:04:58]} 37. Nxh7 {[%emt 0:01:18]} Kg6 {[%emt 0:05:16]} 38. Nf8+ {[%emt 0:01:42]} Kf5 {[%emt 0:05:33]} 39. e6 {[%emt 0:00:27]} Bc6 {[%emt 0:04:51]} 40. Re1 {[%emt 0:00:40]} Rd2 {[%emt 0:02:49]} 41. Rc1 {[%emt 0:29:35]} Bf3 {[%emt 0:31:26]} 42. Kf1 {[%emt 0:21:59]} Rh2 {[%emt 0:31:00]} 43. Rc5+ {[%emt 0:22:27]} Kf6 {[%emt 0:29:46]} 0-1

[Event "89th GER-ch"]
[Site "Dresden"]
[Date "2018.08.04"]
[Round "2.4"]
[White "Buhmann, Rainer"]
[Black "Gungl, Theo"]
[Result "1/2-1/2"]
[ECO "A31"]
[WhiteElo "2581"]
[BlackElo "2283"]
[Annotator "ChessBase"]
[PlyCount "162"]
[EventDate "2018.08.03"]
[EventType "swiss"]
[EventCountry "GER"]
[SourceTitle "playchess.com"]
[Source "ChessBase"]
[SourceQuality "1"]
[TimeControl "40/5400+30:1800+30"]

1. e4 {[%emt 1:30:27]} c5 {[%emt 1:30:25]} 2. Nf3 {[%emt 1:30:49]} d6 {[%emt 1:30:51]} 3. d4 {[%emt 1:31:11]} cxd4 {[%emt 1:31:18]} 4. Nxd4 {[%emt 1:31:31]} Nf6 {[%emt 1:31:44]} 5. f3 {[%emt 1:31:31]} e6 {[%emt 1:23:03]} 6. Be3 {[%emt 1:31:34]} a6 {[%emt 1:15:05]} 7. c4 {[%emt 1:28:22]} Be7 {[%emt 1:14:41]} 8. Nc3 {[%emt 1:28:40]} O-O {[%emt 1:15:00]} 9. Be2 {[%emt 1:25:44]} b6 {[%emt 1:06:55]} 10. O-O {[%emt 1:22:19]} Bb7 {[%emt 1:07:14]} 11. Qd2 {[%emt 1:10:01]} Nbd7 {[%emt 1:05:13]} 12. a4 {[%emt 1:00:56]} Nc5 {[%emt 0:53:11]} 13. Rab1 {[%emt 0:53:09]} Qe8 {[%emt 0:34:30]} 14. b3 {[%emt 0:46:52]} Rc8 {[%emt 0:32:48]} 15. Rfe1 {[%emt 0:34:14]} Ncd7 {[%emt 0:27:02]} 16. Bf1 {[%emt 0:33:06]} Qd8 {[%emt 0:26:52]} 17. Rec1 {[%emt 0:27:44]} Qc7 {[%emt 0:24:01]} 18. Qa2 {[%emt 0:15:49]} Rfd8 {[%emt 0:22:58]} 19. Qf2 {[%emt 0:12:18]} Bf8 {[%emt 0:19:41]} 20. b4 {[%emt 0:11:46]} Ne5 {[%emt 0:06:53]} 21. Nb3 {[%emt 0:06:41]} Nfd7 {[%emt 0:06:54]} 22. Na2 {[%emt 0:03:30]} a5 {[%emt 0:04:24]} 23. bxa5 {[%emt 0:03:42]} bxa5 {[%emt 0:04:53]} 24. Nc3 {[%emt 0:03:52]} Nc6 {[%emt 0:04:36]} 25. Nd5 {[%emt 0:02:43]} exd5 {[%emt 0:03:51]} 26. cxd5 {[%emt 0:03:09]} Nc5 {[%emt 0:04:10]} 27. dxc6 {[%emt 0:02:17]} Bxc6 {[%emt 0:04:39]} 28. Qa2 {[%emt 0:00:13]} Nxa4 {[%emt 0:03:18]} 29. Nd4 {[%emt 0:00:09]} Nc5 {[%emt 0:00:29]} 30. Nxc6 Qxc6 31. Qxa5 {[%emt 0:00:50]} Qc7 {[%emt 0:02:21]} 32. Qd2 {[%emt 0:00:34]} Rb8 {[%emt 0:02:28]} 33. Qc2 {[%emt 0:00:42]} Rxb1 {[%emt 0:01:43]} 34. Rxb1 {[%emt 0:01:10]} Rb8 {[%emt 0:01:06]} 35. Ra1 {[%emt 0:00:58]} g6 {[%emt 0:00:20]} 36. Rd1 {[%emt 0:00:31]} Qe7 {[%emt 0:00:19]} 37. Qd2 {[%emt 0:00:35]} Ne6 {[%emt 0:00:11]} 38. Bc4 {[%emt 0:00:15]} Qf6 {[%emt 0:00:17]} 39. Qd3 {[%emt 0:00:06]} Rb2 {[%emt 0:00:13]} 40. Bxe6 {[%emt 0:00:19]} Qxe6 {[%emt 0:00:38]} 41. Bd4 {[%emt 0:26:25]} Rb3 {[%emt 0:29:41]} 42. Qc2 {[%emt 0:25:50]} Bg7 {[%emt 0:20:07]} 43. Bxg7 {[%emt 0:20:46]} Kxg7 {[%emt 0:20:35]} 44. Qc6 {[%emt 0:16:49]} Rb2 {[%emt 0:14:59]} 45. Qxd6 {[%emt 0:15:01]} Qa2 {[%emt 0:15:02]} 46. Qe5+ {[%emt 0:09:17]} Kh6 {[%emt 0:15:24]} 47. Qf4+ {[%emt 0:07:01]} Kg7 {[%emt 0:15:45]} 48. Qe5+ {[%emt 0:07:06]} Kh6 {[%emt 0:16:07]} 49. Qg3 {[%emt 0:05:54]} Qb3 {[%emt 0:13:00]} 50. Re1 {[%emt 0:03:30]} Qb6+ {[%emt 0:10:52]} 51. Kh1 {[%emt 0:03:57]} Rb1 {[%emt 0:10:00]} 52. h3 {[%emt 0:03:54]} Kg7 {[%emt 0:08:38]} 53. Rxb1 {[%emt 0:04:01]} Qxb1+ {[%emt 0:09:05]} 54. Kh2 {[%emt 0:04:29]} h5 {[%emt 0:08:39]} 55. Qe5+ {[%emt 0:04:49]} Kg8 {[%emt 0:09:04]} 56. Qe8+ {[%emt 0:04:55]} Kg7 {[%emt 0:09:27]} 57. Qe5+ {[%emt 0:05:03]} Kg8 {[%emt 0:09:47]} 58. Qf6 {[%emt 0:04:59]} Qe1 {[%emt 0:08:48]} 59. h4 {[%emt 0:05:07]} Qf2 {[%emt 0:07:54]} 60. Qf4 {[%emt 0:03:25]} Qe1 {[%emt 0:07:34]} 61. Qg3 {[%emt 0:03:42]} Qe3 {[%emt 0:07:31]} 62. Qb8+ {[%emt 0:03:11]} Kg7 {[%emt 0:07:30]} 63. Qb2+ {[%emt 0:02:18]} Kg8 {[%emt 0:07:42]} 64. Kg3 {[%emt 0:02:24]} Qe1+ {[%emt 0:07:41]} 65. Qf2 {[%emt 0:02:48]} Qc3 {[%emt 0:07:58]} 66. Qe2 {[%emt 0:02:57]} Kg7 {[%emt 0:05:13]} 67. Kh3 {[%emt 0:01:58]} Kg8 {[%emt 0:04:56]} 68. e5 {[%emt 0:00:50]} Qc8+ {[%emt 0:04:18]} 69. Kg3 {[%emt 0:01:13]} Qe6 {[%emt 0:03:45]} 70. Qe4 {[%emt 0:01:28]} Kg7 {[%emt 0:03:19]} 71. Qd4 {[%emt 0:01:17]} Kg8 {[%emt 0:02:17]} 72. Qe4 {[%emt 0:00:39]} Qd7 {[%emt 0:01:17]} 73. Qf4 {[%emt 0:00:14]} Qd1 {[%emt 0:00:52]} 74. Qe3 {[%emt 0:00:38]} Qd5 {[%emt 0:00:51]} 75. Kf4 {[%emt 0:00:39]} Qc4+ {[%emt 0:00:28]} 76. Kg5 {[%emt 0:00:30]} Kg7 {[%emt 0:00:25]} 77. Qf4 {[%emt 0:00:31]} Qd5 {[%emt 0:00:19]} 78. Qf6+ {[%emt 0:00:33]} Kh7 {[%emt 0:00:22]} 79. Qf4 {[%emt 0:00:09]} Qd8+ {[%emt 0:00:32]} 80. Qf6 {[%emt 0:00:37]} Qd2+ {[%emt 0:00:53]} 81. Qf4 {[%emt 0:00:58]} Qd8+ {[%emt 0:01:18] --- Qd2 --- f6+} 1/2-1/2

[Event "89th GER-ch"]
[Site "Dresden"]
[Date "2018.08.05"]
[Round "3.3"]
[White "Faerber, David"]
[Black "Langrock, Hannes"]
[Result "1/2-1/2"]
[ECO "C07"]
[WhiteElo "2321"]
[BlackElo "2370"]
[Annotator "NA"]
[PlyCount "96"]
[EventDate "2018.08.03"]
[EventType "swiss"]
[EventCountry "GER"]
[SourceTitle "playchess.com"]
[Source "ChessBase"]
[SourceQuality "1"]
[TimeControl "40/5400+30:1800+30"]

1. e4 {[%emt 1:30:26]} e6 {[%emt 1:30:25]} 2. d4 {[%emt 1:30:35]} d5 {[%emt 1:30:49]} 3. Nd2 {[%emt 1:30:31]} c5 {[%emt 1:31:08]} 4. Ngf3 {[%emt 1:30:28]} cxd4 {[%emt 1:31:06]} 5. exd5 {[%emt 1:29:57]} Qxd5 {[%emt 1:31:23]} 6. Bc4 {[%emt 1:30:01]} Qd6 {[%emt 1:31:36]} 7. O-O {[%emt 1:29:33]} Nf6 {[%emt 1:31:54]} 8. Nb3 {[%emt 1:28:37]} Nc6 {[%emt 1:32:14]} 9. Nbxd4 {[%emt 1:28:13]} Nxd4 {[%emt 1:32:31]} 10. Nxd4 {[%emt 1:27:25]} a6 {[%emt 1:32:51]} 11. Bb3 {[%emt 1:23:59]} Qc7 {[%emt 1:28:39]} 12. Qe2 {[%emt 1:21:35]} Bd6 {[%emt 1:07:50]} 13. h3 {[%emt 1:14:45]} O-O {[%emt 1:06:45]} 14. Bg5 {[%emt 0:59:17]} Qc5 {[%emt 1:02:33]} 15. Be3 {[%emt 0:54:41]} Qc7 {[%emt 1:02:04]} 16. Rad1 {[%emt 0:48:47]} Bh2+ {[%emt 0:52:51]} 17. Kh1 {[%emt 0:49:08]} Bf4 {[%emt 0:53:17]} 18. Bxf4 {[%emt 0:39:45]} Qxf4 $11 {[%emt 0:53:41]} 19. Qf3 {[%emt 0:39:36]} Qc7 {[%emt 0:47:53]} 20. Kg1 {[%emt 0:32:35]} Bd7 {[%emt 0:45:29]} 21. c3 {[%emt 0:23:54]} Rfd8 {[%emt 0:35:58]} 22. Qe3 {[%emt 0:20:41]} Bc6 {[%emt 0:33:11]} 23. Nxc6 {[%emt 0:19:41]} Qxc6 {[%emt 0:33:27]} 24. Rd4 {[%emt 0:18:35]} Rxd4 {[%emt 0:25:43]} 25. Qxd4 {[%emt 0:18:54]} Qc7 {[%emt 0:16:37]} 26. Rd1 {[%emt 0:18:57]} Rc8 {[%emt 0:16:48]} 27. Qd6 {[%emt 0:16:10]} Qxd6 {[%emt 0:11:24]} 28. Rxd6 {[%emt 0:16:32]} Kf8 {[%emt 0:11:34]} 29. Kf1 {[%emt 0:15:13]} Ke7 {[%emt 0:11:31]} 30. Rd1 {[%emt 0:14:28]} g5 {[%emt 0:10:29]} 31. Ke2 {[%emt 0:14:34]} Rc5 {[%emt 0:10:33]} 32. Rd4 {[%emt 0:12:52]} b5 {[%emt 0:10:29]} 33. a4 {[%emt 0:11:24]} h6 {[%emt 0:10:18]} 34. Kd2 {[%emt 0:08:24]} Rf5 {[%emt 0:10:06]} 35. Ke2 {[%emt 0:08:31]} Re5+ {[%emt 0:09:57]} 36. Kf1 {[%emt 0:08:18]} Rc5 {[%emt 0:05:24]} 37. g3 {[%emt 0:07:07]} Re5 {[%emt 0:04:26]} 38. Bc2 {[%emt 0:05:39]} Rc5 {[%emt 0:02:24]} 39. Kg2 {[%emt 0:03:06]} Re5 {[%emt 0:01:48]} 40. Bd3 {[%emt 0:02:08]} Ne8 {[%emt 0:01:25]} 41. axb5 {[%emt 0:25:42]} axb5 {[%emt 0:31:15]} 42. c4 {[%emt 0:25:48]} bxc4 {[%emt 0:26:21]} 43. Bxc4 {[%emt 0:24:09]} Re1 {[%emt 6:35:23]} 44. Rd2 {[%emt 0:23:20]} Re4 {[%emt 0:21:52]} 45. Bf1 {[%emt 0:22:39]} Rb4 {[%emt 0:21:47]} 46. Kf3 {[%emt 0:21:55]} Nf6 {[%emt 0:18:52]} 47. Ke3 {[%emt 0:20:33]} Nd5+ {[%emt 0:19:06]} 48. Kd3 {[%emt 0:20:30]} h5 {[%emt 0:18:37]} 1/2-1/2